[Event "Titled Tuesday Blitz October 18 Late 2022"]
[White "Jimenez Almeida, Luis David"]
[Black "Von Buelow, Georg"]
[WhiteFideId "22242244"]
[BlackFideId "4620658"]
[WhiteElo "2158"]
[BlackElo "2233"]
[Result "1-0"]
[Round "06"]
[TimeControl "180+1"]
[Date "2022.10.19"]
[WhiteClock "0:02:04"]
[BlackClock "0:01:08"]

1. e4 {[%clk 0:03:00]}  c5 {[%clk 0:03:00]} 2. Nc3 {[%clk 0:03:00]}  Nc6 {[%clk 0:03:00]} 3. g3 {[%clk 0:03:01]}  g6 {[%clk 0:02:59]} 4. Bg2 {[%clk 0:03:01]}  Bg7 {[%clk 0:03:00]} 5. d3 {[%clk 0:03:01]}  d6 {[%clk 0:03:00]} 6. Be3 {[%clk 0:03:01]}  e6 {[%clk 0:02:59]} 7. Qd2 {[%clk 0:03:01]}  Qa5 {[%clk 0:02:56]} 8. Nge2 {[%clk 0:03:00]}  Nd4 {[%clk 0:02:54]} 9. O-O {[%clk 0:02:57]}  Ne7 {[%clk 0:02:48]} 10. a3 {[%clk 0:02:49]}  O-O {[%clk 0:02:42]} 11. b4 {[%clk 0:02:46]}  Nxe2+ {[%clk 0:02:41]} 12. Nxe2 {[%clk 0:02:43]}  Qc7 {[%clk 0:02:41]} 13. c3 {[%clk 0:02:41]}  b6 {[%clk 0:02:35]} 14. Bh6 {[%clk 0:02:32]}  Bb7 {[%clk 0:02:20]} 15. Bxg7 {[%clk 0:02:29]}  Kxg7 {[%clk 0:02:21]} 16. h4 {[%clk 0:02:22]}  Rac8 {[%clk 0:01:55]} 17. c4 {[%clk 0:02:21]}  d5 {[%clk 0:01:31]} 18. Qb2+ {[%clk 0:02:18]}  d4 {[%clk 0:01:22]} 19. h5 {[%clk 0:02:18]}  f5 {[%clk 0:01:17]} 20. Nf4 {[%clk 0:02:16]}  Qd7 {[%clk 0:01:12]} 21. bxc5 {[%clk 0:02:15]}  Rxc5 {[%clk 0:01:09]} 22. hxg6 {[%clk 0:02:12]}  hxg6 {[%clk 0:01:09]} 23. exf5 {[%clk 0:02:06]}  exf5 {[%clk 0:01:08]} 24. Bxb7 {[%clk 0:02:04]} 1-0


[Site "https://www.chess.com"]

[Event "Titled Tuesday Blitz October 18 Late 2022"]
[White "Jimenez Jimenez, Leandro"]
[Black "Harish, Neeraj"]
[WhiteFideId "6415253"]
[BlackFideId "30958130"]
[WhiteElo "2217"]
[BlackElo "1815"]
[Result "1-0"]
[Round "06"]
[TimeControl "180+1"]
[Date "2022.10.19"]
[WhiteClock "0:01:12"]
[BlackClock "0:01:28"]

1. d4 {[%clk 0:02:38]}  d5 {[%clk 0:02:58]} 2. c4 {[%clk 0:02:39]}  e6 {[%clk 0:02:57]} 3. cxd5 {[%clk 0:02:40]}  exd5 {[%clk 0:02:57]} 4. Nc3 {[%clk 0:02:41]}  Nf6 {[%clk 0:02:57]} 5. Bg5 {[%clk 0:02:41]}  Be7 {[%clk 0:02:57]} 6. e3 {[%clk 0:02:41]}  h6 {[%clk 0:02:54]} 7. Bh4 {[%clk 0:02:41]}  O-O {[%clk 0:02:54]} 8. Nf3 {[%clk 0:02:41]}  c6 {[%clk 0:02:53]} 9. Be2 {[%clk 0:02:41]}  Nbd7 {[%clk 0:02:52]} 10. O-O {[%clk 0:02:41]}  Nh5 {[%clk 0:02:51]} 11. Bxe7 {[%clk 0:02:41]}  Qxe7 {[%clk 0:02:52]} 12. Qc2 {[%clk 0:02:40]}  Nhf6 {[%clk 0:02:46]} 13. Bd3 {[%clk 0:02:38]}  Re8 {[%clk 0:02:43]} 14. Rab1 {[%clk 0:02:38]}  Ne4 {[%clk 0:02:42]} 15. Bxe4 {[%clk 0:02:36]}  dxe4 {[%clk 0:02:42]} 16. Nd2 {[%clk 0:02:37]}  f5 {[%clk 0:02:41]} 17. Rfe1 {[%clk 0:02:36]}  Nf6 {[%clk 0:02:40]} 18. Nf1 {[%clk 0:02:36]}  Nd5 {[%clk 0:02:40]} 19. Ne2 {[%clk 0:02:35]}  Be6 {[%clk 0:02:40]} 20. a3 {[%clk 0:02:34]}  a5 {[%clk 0:02:33]} 21. Rec1 {[%clk 0:02:32]}  a4 {[%clk 0:02:32]} 22. Qc5 {[%clk 0:02:31]}  Qxc5 {[%clk 0:02:10]} 23. Rxc5 {[%clk 0:02:29]}  g5 {[%clk 0:02:09]} 24. Nfg3 {[%clk 0:02:19]}  Kg7 {[%clk 0:02:06]} 25. h4 {[%clk 0:02:11]}  Kg6 {[%clk 0:02:00]} 26. h5+ {[%clk 0:02:08]}  Kf6 {[%clk 0:01:59]} 27. Rbc1 {[%clk 0:02:04]}  Ra6 {[%clk 0:01:58]} 28. Nc3 {[%clk 0:01:49]}  Nxc3 {[%clk 0:01:46]} 29. R1xc3 {[%clk 0:01:48]}  Rb6 {[%clk 0:01:47]} 30. Ra5 {[%clk 0:01:44]}  Rxb2 {[%clk 0:01:44]} 31. Rxa4 {[%clk 0:01:44]}  Ra2 {[%clk 0:01:42]} 32. Ra7 {[%clk 0:01:43]}  Rb8 {[%clk 0:01:37]} 33. Rc5 {[%clk 0:01:30]}  Bd5 {[%clk 0:01:37]} 34. a4 {[%clk 0:01:28]}  f4 {[%clk 0:01:31]} 35. Nf1 {[%clk 0:01:26]}  Ra1 {[%clk 0:01:31]} 36. a5 {[%clk 0:01:14]}  b6 {[%clk 0:01:27]} 37. axb6 {[%clk 0:01:13]}  Rxb6 {[%clk 0:01:28]} 38. Rxa1 {[%clk 0:01:12]} 1-0


[Site "https://www.chess.com"]

[Event "Titled Tuesday Blitz October 18 Late 2022"]
[White "Kanter, Eduard"]
[Black "Brown, Andrew"]
[WhiteFideId "4103963"]
[BlackFideId "3206513"]
[WhiteElo "2267"]
[BlackElo "2245"]
[Result "0-1"]
[Round "06"]
[TimeControl "180+1"]
[Date "2022.10.19"]
[WhiteClock "0:00:02"]
[BlackClock "0:00:02"]

1. d4 {[%clk 0:02:58]}  g6 {[%clk 0:03:00]} 2. c4 {[%clk 0:02:58]}  Bg7 {[%clk 0:03:00]} 3. e4 {[%clk 0:02:58]}  d6 {[%clk 0:03:00]} 4. Nc3 {[%clk 0:02:57]}  Nd7 {[%clk 0:03:00]} 5. Nf3 {[%clk 0:02:56]}  c5 {[%clk 0:03:00]} 6. d5 {[%clk 0:02:54]}  a6 {[%clk 0:03:00]} 7. a4 {[%clk 0:02:52]}  Ngf6 {[%clk 0:02:58]} 8. Bd3 {[%clk 0:02:49]}  O-O {[%clk 0:02:57]} 9. O-O {[%clk 0:02:47]}  Qc7 {[%clk 0:02:47]} 10. h3 {[%clk 0:02:44]}  Ne5 {[%clk 0:02:43]} 11. Nxe5 {[%clk 0:02:15]}  dxe5 {[%clk 0:02:43]} 12. f4 {[%clk 0:02:13]}  e6 {[%clk 0:02:33]} 13. dxe6 {[%clk 0:02:01]}  Bxe6 {[%clk 0:02:29]} 14. f5 {[%clk 0:01:58]}  Bd7 {[%clk 0:02:25]} 15. a5 {[%clk 0:01:39]}  Rad8 {[%clk 0:02:24]} 16. Nd5 {[%clk 0:01:35]}  Nxd5 {[%clk 0:02:23]} 17. cxd5 {[%clk 0:01:36]}  c4 {[%clk 0:01:49]} 18. Bc2 {[%clk 0:01:34]}  gxf5 {[%clk 0:01:47]} 19. exf5 {[%clk 0:01:33]}  Qc5+ {[%clk 0:01:44]} 20. Kh1 {[%clk 0:01:32]}  f6 {[%clk 0:01:43]} 21. Qf3 {[%clk 0:01:23]}  Bb5 {[%clk 0:01:37]} 22. Rd1 {[%clk 0:01:17]}  Rd6 {[%clk 0:01:31]} 23. Be4 {[%clk 0:01:04]}  Rfd8 {[%clk 0:01:22]} 24. Be3 {[%clk 0:00:52]}  Qb4 {[%clk 0:01:19]} 25. Bb6 {[%clk 0:00:48]}  Rxb6 {[%clk 0:01:11]} 26. axb6 {[%clk 0:00:47]}  Rd6 {[%clk 0:01:11]} 27. Qa3 {[%clk 0:00:41]}  Qxa3 {[%clk 0:01:08]} 28. bxa3 {[%clk 0:00:32]}  Bh6 {[%clk 0:00:57]} 29. a4 {[%clk 0:00:31]}  Be8 {[%clk 0:00:55]} 30. a5 {[%clk 0:00:30]}  Bb5 {[%clk 0:00:44]} 31. Kg1 {[%clk 0:00:23]}  Be3+ {[%clk 0:00:43]} 32. Kh2 {[%clk 0:00:24]}  Kf7 {[%clk 0:00:41]} 33. Kg3 {[%clk 0:00:24]}  Ke7 {[%clk 0:00:38]} 34. Kf3 {[%clk 0:00:25]}  Bd4 {[%clk 0:00:35]} 35. g4 {[%clk 0:00:23]}  Rd8 {[%clk 0:00:33]} 36. h4 {[%clk 0:00:22]}  h6 {[%clk 0:00:30]} 37. Rab1 {[%clk 0:00:20]}  Kd6 {[%clk 0:00:29]} 38. Rd2 {[%clk 0:00:17]}  Kc5 {[%clk 0:00:30]} 39. Rg2 {[%clk 0:00:16]}  Rxd5 {[%clk 0:00:22]} 40. Bxd5 {[%clk 0:00:15]}  Kxd5 {[%clk 0:00:22]} 41. g5 {[%clk 0:00:16]}  fxg5 {[%clk 0:00:20]} 42. hxg5 {[%clk 0:00:16]}  e4+ {[%clk 0:00:19]} 43. Kg4 {[%clk 0:00:16]}  hxg5 {[%clk 0:00:18]} 44. Kxg5 {[%clk 0:00:16]}  c3 {[%clk 0:00:17]} 45. f6 {[%clk 0:00:14]}  Ke6 {[%clk 0:00:17]} 46. Kf4 {[%clk 0:00:13]}  Bd3 {[%clk 0:00:17]} 47. Re1 {[%clk 0:00:09]}  Bxf6 {[%clk 0:00:16]} 48. Rxe4+ {[%clk 0:00:09]}  Bxe4 {[%clk 0:00:16]} 49. Kxe4 {[%clk 0:00:10]}  Kd7 {[%clk 0:00:13]} 50. Kd5 {[%clk 0:00:10]}  Ke7 {[%clk 0:00:10]} 51. Re2+ {[%clk 0:00:09]}  Kd7 {[%clk 0:00:10]} 52. Rf2 {[%clk 0:00:09]}  Bg5 {[%clk 0:00:08]} 53. Rf7+ {[%clk 0:00:07]}  Kd8 {[%clk 0:00:08]} 54. Rc7 {[%clk 0:00:03]}  Bd2 {[%clk 0:00:06]} 55. Ke6 {[%clk 0:00:03]}  Be1 {[%clk 0:00:05]} 56. Rc4 {[%clk 0:00:03]}  Bd2 {[%clk 0:00:04]} 57. Rc7 {[%clk 0:00:03]}  Be1 {[%clk 0:00:04]} 58. Rxb7 {[%clk 0:00:02]}  c2 {[%clk 0:00:02]} 0-1


[Site "https://www.chess.com"]

[Event "Titled Tuesday Blitz October 18 Late 2022"]
[White "Karas, Marek"]
[Black "Gasparyan, David"]
[WhiteFideId "14928558"]
[BlackFideId "13311980"]
[WhiteElo "2220"]
[BlackElo "2374"]
[Result "0-1"]
[Round "06"]
[TimeControl "180+1"]
[Date "2022.10.19"]
[WhiteClock "0:00:04"]
[BlackClock "0:00:05"]

1. a3 {[%clk 0:02:59]}  d5 {[%clk 0:02:51]} 2. Nf3 {[%clk 0:02:56]}  e6 {[%clk 0:02:45]} 3. e3 {[%clk 0:02:51]}  f5 {[%clk 0:02:43]} 4. c4 {[%clk 0:02:49]}  c6 {[%clk 0:02:43]} 5. b4 {[%clk 0:02:48]}  Nf6 {[%clk 0:02:43]} 6. Bb2 {[%clk 0:02:48]}  Be7 {[%clk 0:02:32]} 7. h3 {[%clk 0:02:45]}  Nbd7 {[%clk 0:02:32]} 8. g4 {[%clk 0:02:41]}  O-O {[%clk 0:02:19]} 9. g5 {[%clk 0:02:38]}  Ne4 {[%clk 0:02:17]} 10. h4 {[%clk 0:02:38]}  f4 {[%clk 0:02:12]} 11. d3 {[%clk 0:02:32]}  Nd6 {[%clk 0:02:11]} 12. Bh3 {[%clk 0:02:28]}  fxe3 {[%clk 0:01:36]} 13. Bxe6+ {[%clk 0:02:26]}  Kh8 {[%clk 0:01:36]} 14. fxe3 {[%clk 0:02:14]}  Nf5 {[%clk 0:01:36]} 15. Qd2 {[%clk 0:02:08]}  Ng3 {[%clk 0:01:33]} 16. Qc3 {[%clk 0:01:54]}  Nf6 {[%clk 0:01:33]} 17. Bxc8 {[%clk 0:01:48]}  Nxh1 {[%clk 0:00:57]} 18. Bxb7 {[%clk 0:01:45]}  Rb8 {[%clk 0:00:55]} 19. Bxc6 {[%clk 0:01:43]}  dxc4 {[%clk 0:00:49]} 20. dxc4 {[%clk 0:01:28]}  Qc7 {[%clk 0:00:40]} 21. Ne5 {[%clk 0:01:21]}  Nh5 {[%clk 0:00:25]} 22. Nd2 {[%clk 0:01:10]}  Nf2 {[%clk 0:00:24]} 23. Bf3 {[%clk 0:00:49]}  Rxf3 {[%clk 0:00:14]} 24. Ndxf3 {[%clk 0:00:36]}  Ne4 {[%clk 0:00:14]} 25. Qd4 {[%clk 0:00:35]}  Nd6 {[%clk 0:00:12]} 26. O-O-O {[%clk 0:00:24]}  a5 {[%clk 0:00:12]} 27. g6 {[%clk 0:00:13]}  axb4 {[%clk 0:00:09]} 28. Ng5 {[%clk 0:00:08]}  Nf6 {[%clk 0:00:05]} 29. Nef7+ {[%clk 0:00:04]}  Nxf7 {[%clk 0:00:05]} 30. Nxf7+ {[%clk 0:00:03]}  Kg8 {[%clk 0:00:06]} 31. Ng5 {[%clk 0:00:03]}  hxg6 {[%clk 0:00:05]} 32. axb4 {[%clk 0:00:02]}  Rxb4 {[%clk 0:00:04]} 33. Kc2 {[%clk 0:00:02]}  Rxc4+ {[%clk 0:00:04]} 34. Bc3 {[%clk 0:00:02]}  Rxd4 {[%clk 0:00:05]} 35. Rxd4 {[%clk 0:00:03]}  Qh2+ {[%clk 0:00:06]} 36. Kb3 {[%clk 0:00:03]}  Qb8+ {[%clk 0:00:06]} 37. Kc2 {[%clk 0:00:03]}  Qb7 {[%clk 0:00:06]} 38. Rc4 {[%clk 0:00:02]}  Qd7 {[%clk 0:00:05]} 39. Rd4 {[%clk 0:00:02]}  Qf5+ {[%clk 0:00:05]} 40. Kb2 {[%clk 0:00:01]}  Nd5 {[%clk 0:00:05]} 41. Rc4 {[%clk 0:00:01]}  Bxg5 {[%clk 0:00:05]} 42. hxg5 {[%clk 0:00:01]}  Qxg5 {[%clk 0:00:05]} 43. e4 {[%clk 0:00:01]}  Ne3 {[%clk 0:00:05]} 44. Rc8+ {[%clk 0:00:02]}  Kh7 {[%clk 0:00:05]} 45. Rc7 {[%clk 0:00:02]}  Qg2+ {[%clk 0:00:06]} 46. Kb3 {[%clk 0:00:02]}  Qxe4 {[%clk 0:00:06]} 47. Rxg7+ {[%clk 0:00:02]}  Kh6 {[%clk 0:00:07]} 48. Rg8 {[%clk 0:00:02]}  Qc4+ {[%clk 0:00:07]} 49. Kb2 {[%clk 0:00:02]}  Qxg8 {[%clk 0:00:08]} 50. Bd2 {[%clk 0:00:02]}  g5 {[%clk 0:00:07]} 51. Bxe3 {[%clk 0:00:02]}  Qb8+ {[%clk 0:00:08]} 52. Kc3 {[%clk 0:00:02]}  Qe5+ {[%clk 0:00:08]} 53. Kd3 {[%clk 0:00:03]}  Kh5 {[%clk 0:00:08]} 54. Ke2 {[%clk 0:00:04]}  g4 {[%clk 0:00:08]} 55. Kf2 {[%clk 0:00:04]}  g3+ {[%clk 0:00:08]} 56. Kf3 {[%clk 0:00:04]}  Kh4 {[%clk 0:00:07]} 57. Bg1 {[%clk 0:00:03]}  Qf5+ {[%clk 0:00:07]} 58. Kg2 {[%clk 0:00:03]}  Qe4+ {[%clk 0:00:07]} 59. Kf1 {[%clk 0:00:03]}  Qf3+ {[%clk 0:00:08]} 60. Ke1 {[%clk 0:00:04]}  Qh1 {[%clk 0:00:04]} 61. Kf1 {[%clk 0:00:04]}  Kh3 {[%clk 0:00:05]} 62. Ke2 {[%clk 0:00:04]}  Qxg1 {[%clk 0:00:05]} 0-1


[Site "https://www.chess.com"]

[Event "Titled Tuesday Blitz October 18 Late 2022"]
[White "Korchmar, Vasiliy"]
[Black "Carbone, Diego"]
[WhiteFideId "24131750"]
[BlackFideId "3002179"]
[WhiteElo "2370"]
[BlackElo "2243"]
[Result "1-0"]
[Round "06"]
[TimeControl "180+1"]
[Date "2022.10.19"]
[WhiteClock "0:01:32"]
[BlackClock "0:00:08"]

1. e4 {[%clk 0:03:00]}  e5 {[%clk 0:02:55]} 2. Nf3 {[%clk 0:02:57]}  Nc6 {[%clk 0:02:55]} 3. Bc4 {[%clk 0:02:57]}  Bc5 {[%clk 0:02:51]} 4. c3 {[%clk 0:02:57]}  Nf6 {[%clk 0:02:47]} 5. d3 {[%clk 0:02:57]}  O-O {[%clk 0:02:42]} 6. Bg5 {[%clk 0:02:56]}  h6 {[%clk 0:02:41]} 7. Bh4 {[%clk 0:02:56]}  Be7 {[%clk 0:02:42]} 8. Nbd2 {[%clk 0:02:52]}  d6 {[%clk 0:02:42]} 9. a4 {[%clk 0:02:51]}  Be6 {[%clk 0:02:31]} 10. a5 {[%clk 0:02:41]}  a6 {[%clk 0:02:28]} 11. O-O {[%clk 0:02:27]}  d5 {[%clk 0:02:16]} 12. exd5 {[%clk 0:02:26]}  Bxd5 {[%clk 0:02:14]} 13. Re1 {[%clk 0:02:23]}  Qd6 {[%clk 0:01:20]} 14. Bg3 {[%clk 0:02:13]}  Nh5 {[%clk 0:00:59]} 15. Bxe5 {[%clk 0:02:05]}  Nxe5 {[%clk 0:00:55]} 16. Rxe5 {[%clk 0:02:06]}  Nf6 {[%clk 0:00:46]} 17. Bxd5 {[%clk 0:01:59]}  Nxd5 {[%clk 0:00:46]} 18. Qb3 {[%clk 0:02:00]}  Rfd8 {[%clk 0:00:34]} 19. Rae1 {[%clk 0:01:53]}  Bf6 {[%clk 0:00:32]} 20. Ne4 {[%clk 0:01:54]}  Qd7 {[%clk 0:00:14]} 21. Rxd5 {[%clk 0:01:43]}  Qxd5 {[%clk 0:00:13]} 22. Nxf6+ {[%clk 0:01:43]}  gxf6 {[%clk 0:00:12]} 23. Re8+ {[%clk 0:01:43]}  Kg7 {[%clk 0:00:08]} 24. Qxd5 {[%clk 0:01:44]}  Rxd5 {[%clk 0:00:08]} 25. Rxa8 {[%clk 0:01:44]}  Rxd3 {[%clk 0:00:08]} 26. Kf1 {[%clk 0:01:40]}  Rd1+ {[%clk 0:00:08]} 27. Ke2 {[%clk 0:01:33]}  Rb1 {[%clk 0:00:08]} 28. b4 {[%clk 0:01:33]}  Rb2+ {[%clk 0:00:07]} 29. Nd2 {[%clk 0:01:32]}  Rc2 {[%clk 0:00:08]} 30. Kd3 {[%clk 0:01:32]}  Rc1 {[%clk 0:00:08]} 31. Ra7 {[%clk 0:01:32]} 1-0


[Site "https://www.chess.com"]

[Event "Titled Tuesday Blitz October 18 Late 2022"]
[White "Kowalysko, Roman"]
[Black "Ansh M Shah"]
[WhiteFideId "30918510"]
[BlackFideId "25033379"]
[WhiteElo "2141"]
[BlackElo "2084"]
[Result "0-1"]
[Round "06"]
[TimeControl "180+1"]
[Date "2022.10.19"]
[WhiteClock "0:00:02"]
[BlackClock "0:00:17"]

1. e4 {[%clk 0:03:00]}  c6 {[%clk 0:02:58]} 2. Nf3 {[%clk 0:03:00]}  d5 {[%clk 0:02:59]} 3. exd5 {[%clk 0:03:00]}  cxd5 {[%clk 0:03:00]} 4. Ne5 {[%clk 0:03:00]}  Nc6 {[%clk 0:02:58]} 5. d4 {[%clk 0:03:00]}  Nf6 {[%clk 0:02:58]} 6. c3 {[%clk 0:02:59]}  e6 {[%clk 0:02:58]} 7. f4 {[%clk 0:02:56]}  Nxe5 {[%clk 0:02:52]} 8. fxe5 {[%clk 0:02:55]}  Ne4 {[%clk 0:02:53]} 9. Bd3 {[%clk 0:02:43]}  Qh4+ {[%clk 0:02:45]} 10. g3 {[%clk 0:02:36]}  Nxg3 {[%clk 0:02:45]} 11. hxg3 {[%clk 0:02:11]}  Qxh1+ {[%clk 0:02:43]} 12. Bf1 {[%clk 0:02:09]}  Qe4+ {[%clk 0:02:11]} 13. Be2 {[%clk 0:02:07]}  Bd7 {[%clk 0:02:11]} 14. Nd2 {[%clk 0:02:06]}  Qg6 {[%clk 0:02:05]} 15. Nf1 {[%clk 0:02:06]}  Be7 {[%clk 0:02:05]} 16. Bd3 {[%clk 0:02:06]}  f5 {[%clk 0:01:58]} 17. Bf4 {[%clk 0:01:58]}  Bg5 {[%clk 0:01:48]} 18. Qd2 {[%clk 0:01:58]}  h6 {[%clk 0:01:44]} 19. O-O-O {[%clk 0:01:53]}  Bxf4 {[%clk 0:01:38]} 20. gxf4 {[%clk 0:01:52]}  Qf7 {[%clk 0:01:38]} 21. Ne3 {[%clk 0:01:50]}  g5 {[%clk 0:01:29]} 22. Rf1 {[%clk 0:01:41]}  g4 {[%clk 0:01:29]} 23. Qh2 {[%clk 0:01:39]}  h5 {[%clk 0:01:28]} 24. Ng2 {[%clk 0:01:37]}  h4 {[%clk 0:01:12]} 25. Nxh4 {[%clk 0:01:34]}  O-O-O {[%clk 0:01:10]} 26. Qg3 {[%clk 0:01:29]}  Rh5 {[%clk 0:01:10]} 27. c4 {[%clk 0:01:05]}  Bc6 {[%clk 0:01:09]} 28. c5 {[%clk 0:01:01]}  Rdh8 {[%clk 0:01:07]} 29. Ng2 {[%clk 0:00:59]}  Rh3 {[%clk 0:01:07]} 30. Qf2 {[%clk 0:00:50]}  Rxd3 {[%clk 0:01:05]} 31. Ne3 {[%clk 0:00:50]}  Rh3 {[%clk 0:01:03]} 32. Re1 {[%clk 0:00:50]}  Rf3 {[%clk 0:00:58]} 33. Qg1 {[%clk 0:00:43]}  Qh5 {[%clk 0:00:34]} 34. Nxd5 {[%clk 0:00:35]}  Bxd5 {[%clk 0:00:33]} 35. Re2 {[%clk 0:00:20]}  Rh3 {[%clk 0:00:22]} 36. Kc2 {[%clk 0:00:16]}  Rdf3 {[%clk 0:00:16]} 37. Qe1 {[%clk 0:00:13]}  Rh2 {[%clk 0:00:14]} 38. Qd2 {[%clk 0:00:08]}  Rxe2 {[%clk 0:00:14]} 39. Qxe2 {[%clk 0:00:08]}  Rh3 {[%clk 0:00:14]} 40. Qb5 {[%clk 0:00:08]}  Rh2+ {[%clk 0:00:15]} 41. Kc3 {[%clk 0:00:07]}  Bc6 {[%clk 0:00:16]} 42. Qc4 {[%clk 0:00:06]}  Qh3+ {[%clk 0:00:15]} 43. Kb4 {[%clk 0:00:05]}  Rxb2+ {[%clk 0:00:16]} 44. Ka5 {[%clk 0:00:03]}  Qa3+ {[%clk 0:00:16]} 45. Qa4 {[%clk 0:00:02]}  Qxa4# {[%clk 0:00:17]} 0-1


[Site "https://www.chess.com"]

[Event "Titled Tuesday Blitz October 18 Late 2022"]
[White "Koziorowicz, Michal"]
[Black "Castellanos Gomez, Alejandro"]
[WhiteFideId "21809194"]
[BlackFideId "22284141"]
[WhiteElo "2220"]
[BlackElo "2168"]
[Result "1-0"]
[Round "06"]
[TimeControl "180+1"]
[Date "2022.10.18"]
[WhiteClock "0:00:05"]
[BlackClock "0:00:01"]

1. Nc3 {[%clk 0:03:00]}  e6 {[%clk 0:02:56]} 2. b3 {[%clk 0:02:57]}  d5 {[%clk 0:02:56]} 3. Bb2 {[%clk 0:02:58]}  Nf6 {[%clk 0:02:56]} 4. d3 {[%clk 0:02:57]}  b6 {[%clk 0:02:48]} 5. e3 {[%clk 0:02:56]}  c5 {[%clk 0:02:47]} 6. Nce2 {[%clk 0:02:52]}  Bb7 {[%clk 0:02:47]} 7. f4 {[%clk 0:02:52]}  Nc6 {[%clk 0:02:44]} 8. h3 {[%clk 0:02:50]}  Bd6 {[%clk 0:02:42]} 9. Nf3 {[%clk 0:02:49]}  Qc7 {[%clk 0:02:40]} 10. g3 {[%clk 0:02:48]}  e5 {[%clk 0:02:38]} 11. Bg2 {[%clk 0:02:44]}  O-O-O {[%clk 0:02:37]} 12. O-O {[%clk 0:02:41]}  d4 {[%clk 0:02:35]} 13. fxe5 {[%clk 0:02:23]}  Nxe5 {[%clk 0:02:33]} 14. e4 {[%clk 0:02:23]}  Ng6 {[%clk 0:02:28]} 15. Qe1 {[%clk 0:02:18]}  Nh5 {[%clk 0:02:25]} 16. g4 {[%clk 0:02:17]}  Nhf4 {[%clk 0:02:24]} 17. Bc1 {[%clk 0:02:14]}  Nxg2 {[%clk 0:02:16]} 18. Kxg2 {[%clk 0:02:12]}  f6 {[%clk 0:02:16]} 19. Nh4 {[%clk 0:02:10]}  Rde8 {[%clk 0:01:56]} 20. Nf5 {[%clk 0:02:07]}  Be5 {[%clk 0:01:49]} 21. Neg3 {[%clk 0:02:01]}  Nf8 {[%clk 0:01:44]} 22. a4 {[%clk 0:01:54]}  g6 {[%clk 0:01:44]} 23. Nh4 {[%clk 0:01:50]}  Ne6 {[%clk 0:01:41]} 24. a5 {[%clk 0:01:47]}  b5 {[%clk 0:01:41]} 25. a6 {[%clk 0:01:46]}  Bc6 {[%clk 0:01:41]} 26. Ne2 {[%clk 0:01:43]}  Rhf8 {[%clk 0:01:29]} 27. Bh6 {[%clk 0:01:40]}  Rf7 {[%clk 0:01:29]} 28. Nf3 {[%clk 0:01:27]}  Bd6 {[%clk 0:01:27]} 29. b4 {[%clk 0:01:28]}  f5 {[%clk 0:01:20]} 30. bxc5 {[%clk 0:01:25]}  Bxc5 {[%clk 0:01:19]} 31. Ng3 {[%clk 0:01:01]}  f4 {[%clk 0:00:46]} 32. Ne2 {[%clk 0:00:58]}  g5 {[%clk 0:00:46]} 33. c3 {[%clk 0:00:52]}  dxc3 {[%clk 0:00:20]} 34. Qxc3 {[%clk 0:00:53]}  b4 {[%clk 0:00:17]} 35. Qc4 {[%clk 0:00:50]}  Qb6 {[%clk 0:00:15]} 36. Rfc1 {[%clk 0:00:41]}  Bb5 {[%clk 0:00:14]} 37. Qb3 {[%clk 0:00:34]}  Kb8 {[%clk 0:00:15]} 38. d4 {[%clk 0:00:24]}  Bxe2 {[%clk 0:00:13]} 39. dxc5 {[%clk 0:00:23]}  Bxf3+ {[%clk 0:00:14]} 40. Qxf3 {[%clk 0:00:19]}  Nxc5 {[%clk 0:00:13]} 41. Bxg5 {[%clk 0:00:18]}  Rxe4 {[%clk 0:00:09]} 42. Re1 {[%clk 0:00:15]}  Qc6 {[%clk 0:00:06]} 43. Rac1 {[%clk 0:00:12]}  Re6 {[%clk 0:00:03]} 44. Qxc6 {[%clk 0:00:05]}  Rxc6 {[%clk 0:00:04]} 45. Re5 {[%clk 0:00:06]}  Rfc7 {[%clk 0:00:02]} 46. Bxf4 {[%clk 0:00:06]}  Nd3 {[%clk 0:00:01]} 47. Re8# {[%clk 0:00:05]} 1-0


[Site "https://www.chess.com"]

[Event "Titled Tuesday Blitz October 18 Late 2022"]
[White "Leschinsky, Gary"]
[Black "Domingo Nunez, Ruben"]
[WhiteFideId "30951321"]
[BlackFideId "22245570"]
[WhiteElo "1855"]
[BlackElo "2406"]
[Result "1-0"]
[Round "06"]
[TimeControl "180+1"]
[Date "2022.10.19"]
[WhiteClock "0:01:02"]
[BlackClock "0:00:06"]

1. d4 {[%clk 0:03:00]}  g6 {[%clk 0:02:57]} 2. e4 {[%clk 0:03:00]}  Bg7 {[%clk 0:02:58]} 3. Nc3 {[%clk 0:03:01]}  c6 {[%clk 0:02:59]} 4. f4 {[%clk 0:02:44]}  d5 {[%clk 0:02:58]} 5. e5 {[%clk 0:02:44]}  f6 {[%clk 0:02:59]} 6. Nf3 {[%clk 0:02:42]}  Nh6 {[%clk 0:02:59]} 7. Be3 {[%clk 0:02:41]}  Bg4 {[%clk 0:03:00]} 8. Be2 {[%clk 0:02:41]}  O-O {[%clk 0:02:59]} 9. Qd2 {[%clk 0:02:40]}  Nf5 {[%clk 0:02:58]} 10. Bf2 {[%clk 0:02:40]}  Bxf3 {[%clk 0:02:59]} 11. Bxf3 {[%clk 0:02:40]}  fxe5 {[%clk 0:02:59]} 12. fxe5 {[%clk 0:02:40]}  e6 {[%clk 0:02:59]} 13. h4 {[%clk 0:02:35]}  c5 {[%clk 0:02:48]} 14. dxc5 {[%clk 0:02:29]}  Nc6 {[%clk 0:02:47]} 15. g4 {[%clk 0:02:26]}  Nxe5 {[%clk 0:01:26]} 16. Be2 {[%clk 0:02:24]}  Bh6 {[%clk 0:01:26]} 17. g5 {[%clk 0:02:22]}  Bg7 {[%clk 0:01:23]} 18. O-O-O {[%clk 0:02:20]}  Rc8 {[%clk 0:01:08]} 19. h5 {[%clk 0:02:17]}  Nd6 {[%clk 0:00:40]} 20. Bd4 {[%clk 0:02:03]}  Ndc4 {[%clk 0:00:39]} 21. Bxc4 {[%clk 0:02:01]}  Nf3 {[%clk 0:00:19]} 22. Qg2 {[%clk 0:01:34]}  Bxd4 {[%clk 0:00:16]} 23. Nxd5 {[%clk 0:01:34]}  exd5 {[%clk 0:00:16]} 24. hxg6 {[%clk 0:01:28]}  hxg6 {[%clk 0:00:15]} 25. Rxd4 {[%clk 0:01:23]}  Nxd4 {[%clk 0:00:11]} 26. Bxd5+ {[%clk 0:01:02]}  Kg7 {[%clk 0:00:11]} 27. Rh7+ {[%clk 0:01:01]}  Kxh7 {[%clk 0:00:05]} 28. Qh3+ {[%clk 0:01:02]}  Kg7 {[%clk 0:00:06]} 29. Qh6# {[%clk 0:01:02]} 1-0


[Site "https://www.chess.com"]